lending/lending_fUSD_20260110
["ID","MTS","AMOUNT","RATE_DAILY","PERIOD"]
[401192631,1768033851347,-178.71892515,0.000178,2]
[401192632,1768033851357,-1000.0,0.000178,2]
[401192633,1768033851367,-500.0,0.00017808,2]
[401192634,1768033851377,-207.26988174,0.00017808,2]
[401192635,1768033851387,-455.0,0.00017811,2]
[401192636,1768033851398,-255.68743637,0.00017818,2]
[401192637,1768033851408,-189.54348929,0.00017818,2]
[401192638,1768033851418,-263.75602621,0.00017818,2]
[401192639,1768033851428,-216.87423394,0.00017818,2]
[401192640,1768033851438,-229.31905987,0.00017818,2]
[401192641,1768033851448,-178.71892515,0.00017818,2]
[401192642,1768033851458,-6000.0,0.0001782,2]
[401192643,1768033851469,-6000.0,0.0001782,2]
[401192644,1768033851479,-159.35537069,0.0001782,2]
[401192645,1768033851489,-150.0,0.00017823,2]
[401192646,1768033851499,-150.0,0.00017827,2]
[401192647,1768033851509,-6000.0,0.0001783,2]
[401192648,1768033851519,-255.68743637,0.00017836,2]
[401192649,1768033851531,-189.54348929,0.00017836,2]
[401192650,1768033851542,-263.75602621,0.00017836,2]
[401192651,1768033851552,-216.87423394,0.00017836,2]
[401192652,1768033851563,-150.0,0.00017836,2]
[401192653,1768033851573,-229.31905987,0.00017836,2]
[401192654,1768033851584,-178.71892515,0.00017836,2]
[401192655,1768033851595,-152.0,0.00017838,3]
[401192656,1768033851605,-1000.0,0.00017839,2]
[401192657,1768033851616,-561.2,0.00017851,2]
[401192658,1768033851629,-150.0,0.00017852,2]
[401192659,1768033851641,-255.68743637,0.00017855,2]
[401192660,1768033851653,-189.54348929,0.00017855,2]
[401192661,1768033851665,-263.75602621,0.00017855,2]
[401192662,1768033851679,-216.87423394,0.00017855,2]
[401192663,1768033851690,-229.31905987,0.00017855,2]
[401192664,1768033851700,-178.71892515,0.00017855,2]
[401192665,1768033851711,-200.0,0.00017855,2]
[401192666,1768033851722,-2000.0,0.00017856,2]
[401192667,1768033851732,-200.0,0.00017856,2]
[401192668,1768033851742,-200.0,0.00017856,2]
[401192669,1768033851752,-6000.0,0.0001786,2]
[401192670,1768033851763,-150.0,0.00017862,2]
[401192671,1768033851773,-501.30688292,0.00017863,2]
[401192672,1768033851783,-150.0,0.00017867,2]
[401192673,1768033851793,-255.68743637,0.00017873,2]
[401192674,1768033851803,-189.54348929,0.00017873,2]
[401192675,1768033851813,-263.75602621,0.00017873,2]
[401192676,1768033851823,-216.87423394,0.00017873,2]
[401192677,1768033851833,-229.31905987,0.00017873,2]
[401192678,1768033851842,-178.71892515,0.00017873,2]
[401192679,1768033851853,-150.0,0.00017877,2]
[401192680,1768033851863,-500.0,0.00017879,2]
[401192681,1768033851873,-6000.0,0.0001788,2]
[401192682,1768033851883,-150.0,0.00017882,2]
[401192683,1768033851894,-150.0,0.00017887,2]
[401192684,1768033851904,-255.68743637,0.00017891,2]
[401192685,1768033851915,-189.54348929,0.00017891,2]
[401192686,1768033851925,-263.75602621,0.00017891,2]
[401192687,1768033851936,-216.87423394,0.00017891,2]
[401192688,1768033851951,-229.31905987,0.00017891,2]
[401192689,1768033851961,-178.71892515,0.00017891,2]
[401192690,1768033851973,-1000.0,0.00017892,2]
[401192691,1768033851985,-1000.0,0.00017896,2]
[401192692,1768033851996,-150.0,0.00017896,2]
[401192693,1768033852008,-6228.92016198,0.000179,3]
[401192694,1768033852020,-170.32473985,0.000179,2]
[401192695,1768033852030,-25000.0,0.000179,3]
[401192696,1768033852040,-60000.0,0.000179,2]
[401192697,1768033852051,-25000.0,0.000179,3]
[401192698,1768033852062,-591.38897096,0.000179,2]
[401192699,1768033852074,-2687.76229548,0.000179,2]
[401192700,1768033852085,-1000.0,0.000179,2]
[401192701,1768033852096,-4460.51539019,0.000179,2]
[401192702,1768033852107,-179.38897292,0.000179,3]
[401192703,1768033852118,-998.12031984,0.000179,2]
[401192704,1768033852129,-998.12031967,0.000179,2]
[401192705,1768033852139,-998.12031967,0.000179,2]
[401192706,1768033852149,-998.12031967,0.000179,2]
[401192707,1768033852159,-998.12031967,0.000179,2]
[401192708,1768033852170,-998.12031967,0.000179,2]
[401192709,1768033852181,-998.12031967,0.000179,2]
[401192710,1768033852191,-151.0,0.000179,2]
[401192711,1768033852203,-151.0,0.000179,2]
[401192712,1768033852214,-692.341074,0.000179,2]
[401192713,1768033852224,-158.12267731,0.000179,2]
[401192714,1768033852234,-151.0,0.000179,2]
[401192715,1768033852245,-19380.63999239,0.000179,2]
[401192716,1768033852255,-151.0,0.000179,2]
[401192717,1768033852265,-998.12031967,0.000179,2]
[401192718,1768033852276,-692.341074,0.000179,2]
[401192719,1768033852286,-151.0,0.000179,2]
[401192720,1768033852297,-336.38037809,0.000179,2]
[401192721,1768033852307,-692.341074,0.000179,2]
[401192722,1768033852318,-692.341074,0.000179,2]
[401192723,1768033852328,-151.0,0.000179,2]
[401192724,1768033852339,-998.12031967,0.000179,2]
[401192725,1768033852349,-4358.51991893,0.000179,2]
[401192726,1768033852359,-8114.0,0.000179,2]
[401192727,1768033852370,-255.68743637,0.00017909,2]
[401192728,1768033852381,-189.54348929,0.00017909,2]
[401192729,1768033852392,-263.75602621,0.00017909,2]
[401192730,1768033852402,-216.87423394,0.00017909,2]
[401192731,1768033852412,-229.31905987,0.00017909,2]
[401192732,1768033852423,-178.71892515,0.00017909,2]
[401192733,1768033852433,-6000.0,0.0001791,2]
[401192734,1768033852443,-150.0,0.00017911,2]
[401192735,1768033852454,-168.0,0.00017912,2]
[401192736,1768033852464,-150.0,0.00017918,2]
[401192737,1768033852474,-561.2,0.00017925,2]
[401192738,1768033852489,-255.68743637,0.00017927,2]
[401192739,1768033852501,-189.54348929,0.00017927,2]
[401192740,1768033852512,-263.75602621,0.00017927,2]
[401192741,1768033852524,-216.87423394,0.00017927,2]
[401192742,1768033852534,-229.31905987,0.00017927,2]
[401192743,1768033852545,-178.71892515,0.00017927,2]
[401192744,1768033852556,-150.0,0.00017931,2]
[401192745,1768033852566,-150.0,0.00017933,2]
[401192746,1768033852577,-150.0,0.00017941,2]
[401192747,1768033852587,-255.68743637,0.00017945,2]
[401192748,1768033852599,-189.54348929,0.00017945,2]
[401192749,1768033852609,-263.75602621,0.00017945,2]
[401192750,1768033852620,-216.87423394,0.00017945,2]
[401192751,1768033852630,-229.31905987,0.00017945,2]
[401192752,1768033852640,-178.71892515,0.00017945,2]
[401192753,1768033852650,-181.00537575,0.00017946,2]
[401192754,1768033852661,-150.0,0.00017959,2]
[401192755,1768033852673,-255.68743637,0.00017964,2]
[401192756,1768033852683,-189.54348929,0.00017964,2]
[401192757,1768033852693,-263.75602621,0.00017964,2]
[401192758,1768033852703,-216.87423394,0.00017964,2]
[401192759,1768033852713,-229.31905987,0.00017964,2]
[401192760,1768033852723,-178.71892515,0.00017964,2]
[401192761,1768033852733,-1000.0,0.00017964,2]
[401192762,1768033852743,-150.0,0.00017965,2]
[401192763,1768033852753,-150.0,0.0001797,2]
[401192764,1768033852763,-303.0,0.00017973,2]
[401192765,1768033852774,-500.0,0.00017973,2]
[401192766,1768033852785,-500.0,0.00017973,2]
[401192767,1768033852797,-500.0,0.00017973,2]
[401192768,1768033852807,-501.2767774,0.00017973,2]
[401192769,1768033852817,-500.0,0.00017973,2]
[401192770,1768033852827,-500.0,0.00017973,2]
[401192771,1768033852837,-500.0,0.00017973,2]
[401192772,1768033852847,-500.0,0.00017973,2]
[401192773,1768033852857,-500.0,0.00017973,2]
[401192774,1768033852867,-500.0,0.00017973,2]
[401192775,1768033852877,-500.0,0.00017973,2]
[401192776,1768033852887,-150.34167383,0.00017973,2]
[401192777,1768033852897,-191.10319937,0.00017973,2]
[401192778,1768033852907,-610.19552731,0.00017973,2]
[401192779,1768033852920,-500.0,0.00017973,2]
[401192780,1768033852930,-500.0,0.00017973,2]
[401192781,1768033852941,-500.0,0.00017973,2]
[401192782,1768033852951,-500.0,0.00017973,2]
[401192783,1768033852962,-500.0,0.00017973,2]
[401192784,1768033852973,-500.0,0.00017973,2]
[401192785,1768033852984,-500.0,0.00017973,2]
[401192786,1768033852996,-500.0,0.00017973,2]
[401192787,1768033853006,-500.0,0.00017973,2]
[401192788,1768033853021,-260.97339631,0.00017973,2]
[401192789,1768033853033,-300.29995774,0.00017973,2]
[401192790,1768033853368,-433.9562915,0.00017973,2]
[401192791,1768033853378,-500.0,0.00017973,2]
[401192792,1768033853388,-500.0,0.00017973,2]
[401192793,1768033853398,-500.0,0.00017973,2]
[401192794,1768033853408,-500.85151996,0.00017973,2]
[401192795,1768033853418,-500.0,0.00017973,2]
[401192796,1768033853428,-500.0,0.00017973,2]
[401192797,1768033853438,-500.0,0.00017973,2]
[401192798,1768033853448,-500.0,0.00017973,2]
[401192799,1768033853458,-500.0,0.00017973,2]
[401192800,1768033853467,-500.0,0.00017973,2]
[401192801,1768033853477,-641.77796518,0.00017973,2]
[401192802,1768033853486,-500.0,0.00017973,2]
[401192803,1768033853495,-500.0,0.00017973,2]
[401192804,1768033853505,-571.47009533,0.00017973,2]
[401192805,1768033853515,-500.0,0.00017973,2]
[401192806,1768033853525,-500.0,0.00017973,2]
[401192807,1768033853535,-588.0072514,0.00017973,2]
[401192808,1768033853545,-500.0,0.00017973,2]
[401192809,1768033853555,-500.0,0.00017973,2]
[401192810,1768033853566,-500.0,0.00017973,2]
[401192811,1768033853576,-500.0,0.00017973,2]
[401192812,1768033853586,-1000.0,0.00017973,2]
[401192813,1768033853596,-150.0,0.00017973,2]
[401192814,1768033853607,-150.0,0.00017973,2]
[401192815,1768033853616,-500.0,0.0001798,2]
[401192816,1768033853627,-500.0,0.0001798,2]
[401192817,1768033853636,-1000.0,0.0001798,2]
[401192818,1768033853646,-1027.72,0.0001798,2]
[401192819,1768033853655,-242.0,0.00017981,2]
[401192820,1768033853665,-255.68743637,0.00017982,2]
[401192821,1768033853680,-189.54348929,0.00017982,2]
[401192822,1768033853693,-263.75602621,0.00017982,2]
[401192823,1768033853703,-216.87423394,0.00017982,2]
[401192824,1768033853713,-229.31905987,0.00017982,2]
[401192825,1768033853722,-178.71892515,0.00017982,2]
[401192826,1768033853732,-500.0,0.00017982,2]
[401192827,1768033853742,-766.11378665,0.0001799,2]
[401192828,1768033853753,-766.11378665,0.0001799,2]
[401192829,1768033853765,-500.0,0.00017998,2]
[401192830,1768033853784,-1006.5165,0.00017999,2]
[401192831,1768033853795,-300.0,0.00017999,2]
[401192832,1768033853805,-300.0,0.00017999,2]
[401192833,1768033853815,-11563.77530464,0.00017999,2]
[401192834,1768033853825,-300.0,0.00017999,2]
[401192835,1768033853835,-666.0,0.00017999,2]
[401192836,1768033853845,-500.0,0.00017999,2]
[401192837,1768033853855,-500.0,0.00017999,2]
[401192838,1768033853864,-500.0,0.00017999,2]
[401192839,1768033853874,-500.0,0.00017999,2]
[401192840,1768033853884,-500.0,0.00017999,2]
[401192841,1768033853893,-359.11221161,0.00017999,2]
[401192842,1768033853903,-499.15193806,0.00017999,2]
[401192843,1768033853913,-255.68743637,0.00018,2]
[401192844,1768033853923,-189.54348929,0.00018,2]
[401192845,1768033853933,-263.75602621,0.00018,2]
[401192846,1768033853944,-196.21798024,0.00018,2]
[401192847,1768033853954,-223.10788253,0.00018,2]
[401192848,1768033853964,-216.87423394,0.00018,2]
[401192849,1768033853973,-216.79771002,0.00018,2]
[401192850,1768033853983,-156.68286018,0.00018,2]
[401192851,1768033853993,-298.52493072,0.00018,2]
[401192852,1768033854002,-229.31905987,0.00018,2]
[401192853,1768033854013,-178.17676299,0.00018,2]
[401192854,1768033854023,-231.22039699,0.00018,2]
[401192855,1768033854033,-194.08427451,0.00018,2]
[401192856,1768033854044,-247.12115074,0.00018,2]
[401192857,1768033854054,-252.12379273,0.00018,2]
[401192858,1768033854063,-157.59943202,0.00018,2]
[401192859,1768033854073,-178.71892515,0.00018,2]
[401192860,1768033854083,-624199.74865414,0.00018,2]
[401192861,1768033854093,-150.0,0.00018,2]
[401192862,1768033854103,-150.0,0.00018,2]
[401192863,1768033854113,-3376.03001599,0.00018,2]
[401192864,1768033854123,-150.0,0.00018,2]
[401192865,1768033854134,-2286.12716792,0.00018,2]
[401192866,1768033854144,-2933.89154744,0.00018,2]
[401192867,1768033854155,-150.0,0.00018,2]
[401192868,1768033854165,-5511.15547096,0.00018,2]
[401192869,1768033854176,-1000.0,0.00018,2]
[401192870,1768033854187,-1000.0,0.00018,2]
[401192871,1768033854196,-1000.0,0.00018,2]
[401192872,1768033854207,-1000.0,0.00018,2]
[401192873,1768033854217,-1000.0,0.00018,2]
[401192874,1768033854228,-1000.0,0.00018,2]
[401192875,1768033854238,-1000.0,0.00018,2]
[401192876,1768033854249,-1000.0,0.00018,2]
[401192877,1768033854259,-1000.0,0.00018,2]
[401192878,1768033854269,-1000.0,0.00018,2]
[401192879,1768033854279,-1000.0,0.00018,2]
[401192880,1768033854289,-1000.0,0.00018,2]
[401192881,1768033854299,-1000.0,0.00018,2]
[401192882,1768033854309,-1000.0,0.00018,2]
[401192883,1768033854319,-1032.18324765,0.00018,2]
[401192884,1768033854330,-710751.76636173,0.00018,2]
[401192885,1768033855498,-151.0,0.000179,2]
[401192886,1768033855509,-577.567403,0.000179,2]
[401192887,1768033855518,-151.0,0.000179,2]
[401192888,1768033855527,-577.567403,0.000179,2]
[401192889,1768033855537,-577.567403,0.000179,2]
[401192890,1768033855546,-998.12031967,0.000179,2]
[401192891,1768033855556,-28910.77543568,0.00018,2]
[401192892,1768033855578,-300.23409272,0.00018,2]
[401192895,1768034392163,973.57,0.000152,10]
[401192896,1768034423996,3000.0,0.00010484,2]
[401192897,1768034480460,-236.72555639,0.00010959,2]
[401192898,1768034484265,-237.39152519,0.00010959,2]
[401192899,1768034488639,-419.28007477,0.00010959,2]
[401192900,1768034490727,-300.0,0.00010959,2]
[401192901,1768034493751,-204.30929403,0.00010959,2]
[401192902,1768034599908,-272.19382062,0.00010959,2]
[401192903,1768034599931,-92.762047,0.00012055,2]
[401192904,1768034601478,-157.237953,0.00012055,2]
[401192905,1768034601501,-90.0435853,0.00012055,2]
[401192906,1768034604802,-189.83615086,0.00012055,2]
[401192907,1768034720472,-20.12026384,0.00012055,2]
[401192908,1768034720496,-144.36337062,0.0001326,2]
[401192909,1768034794934,-131.01331989,0.0001326,2]
[401192910,1768034794958,-107.84689479,0.00014355,2]
[401192911,1768034809929,-237.1398076,0.00014355,2]
[401192912,1768034819133,-255.01329761,0.00014355,2]
[401192913,1768034819156,-600.0,0.00014426,2]
[401192914,1768034819181,-267.93,0.00014814,2]
[401192915,1768034819204,-150.0,0.00014895,2]
[401192916,1768034819228,-1401.16727059,0.00014895,2]
[401192917,1768034819251,-500.0,0.00015123,2]
[401192918,1768034819274,-825.8894318,0.000152,10]
[401192919,1768034979086,500.0,0.0001179,3]
[401192926,1768035031591,-151.48,0.00014895,2]
[401192927,1768035031602,-664.38407937,0.000152,10]
[401192930,1768035031647,-1509.72648883,0.000152,10]
[401192931,1768035031656,-243.0120654,0.00015438,2]
[401192932,1768035031665,-243.0120654,0.00015438,2]
[401192933,1768035031675,-3103.92597294,0.00015438,2]
[401192934,1768035031684,-1200.0,0.00015439,2]
[401192935,1768035031694,-510.22146759,0.0001544,2]
[401192936,1768035031705,-1931.43592063,0.0001544,2]
[401192937,1768035031719,-1014.31929586,0.0001544,2]
[401192938,1768035031730,-796.75417242,0.0001544,2]
[401192939,1768035031754,-6837.91606482,0.0001544,2]
[401192940,1768035031861,-3794.84900764,0.0001544,2]
[401192941,1768035031872,-902.96340192,0.0001544,2]
[401192944,1768035031929,-296.0765777,0.0001544,2]
[401192983,1768035037694,-200.0,0.00015296,2]
[401192984,1768035037704,-3419.89584989,0.0001544,2]
[401192985,1768035037717,-821.0,0.0001544,2]
[401192986,1768035037755,-169504.25225104,0.0001544,2]
[401192987,1768035037767,-9573.10872075,0.0001544,2]
[401192988,1768035037801,-15972.94042967,0.0001544,2]
[401192989,1768035037909,-999.0,0.0001544,2]
[401193154,1768035039788,-383217.03639627,0.0001544,2]
[401193155,1768035039846,-523.4734025,0.0001544,2]
[401193158,1768035039992,-435.350602,0.0001544,2]
[401193159,1768035040684,-399449.4064393,0.0001544,2]
[401193160,1768035040694,-1001.92487185,0.00015539,2]
[401193161,1768035040703,-1000.0,0.00015539,2]
[401193162,1768035040713,-1200.0,0.00015539,2]
[401193163,1768035040729,-92565.16,0.0001554,2]
[401193164,1768035040749,-170.80877727,0.0001555,2]
[401193165,1768035040758,-4358.51991893,0.0001555,2]
[401193166,1768035040768,-2500.0,0.0001555,2]
[401193167,1768035040778,-5223.79508024,0.00015575,2]
[401193168,1768035040788,-4304.92943194,0.000156,2]
[401193169,1768035040798,-500.0,0.00015649,2]
[401193170,1768035040808,-500.0,0.00015649,2]
[401193171,1768035040817,-500.0,0.00015649,2]
[401193172,1768035040827,-500.0,0.00015649,2]
[401193173,1768035040837,-500.0,0.00015649,2]
[401193174,1768035040847,-500.0,0.00015649,2]
[401193175,1768035040856,-500.0,0.00015649,2]
[401193176,1768035040866,-500.0,0.00015649,2]
[401193177,1768035040876,-500.0,0.00015649,2]
[401193178,1768035040886,-500.0,0.00015649,2]
[401193179,1768035040896,-500.0,0.00015649,2]
[401193180,1768035040906,-500.0,0.00015649,2]
[401193181,1768035040916,-500.0,0.00015649,2]
[401193182,1768035040926,-500.0,0.00015649,2]
[401193183,1768035040936,-370.678114,0.00015649,2]
[401193184,1768035040945,-500.0,0.00015649,2]
[401193185,1768035040955,-500.0,0.00015649,2]
[401193186,1768035040964,-500.0,0.00015649,2]
[401193187,1768035040974,-500.0,0.00015649,2]
[401193188,1768035040983,-500.0,0.00015649,2]
[401193189,1768035040993,-500.0,0.00015649,2]
[401193190,1768035041002,-500.0,0.00015649,2]
[401193191,1768035041012,-500.0,0.00015649,2]
[401193192,1768035041021,-500.0,0.00015649,2]
[401193193,1768035041031,-500.0,0.00015649,2]
[401193194,1768035041040,-500.0,0.00015649,2]
[401193195,1768035041050,-500.0,0.00015649,2]
[401193196,1768035041064,-500.0,0.00015649,2]
[401193197,1768035041074,-500.0,0.00015649,2]
[401193198,1768035041083,-500.0,0.00015649,2]
[401193199,1768035041094,-500.0,0.00015649,2]
[401193200,1768035041103,-500.0,0.00015649,2]
[401193201,1768035041113,-500.0,0.00015649,2]
[401193202,1768035041122,-500.0,0.00015649,2]
[401193203,1768035041136,-500.0,0.00015649,2]
[401193204,1768035041146,-500.0,0.00015649,2]
[401193205,1768035041155,-500.0,0.00015649,2]
[401193206,1768035041165,-500.0,0.00015649,2]
[401193207,1768035041176,-500.0,0.00015649,2]
[401193208,1768035041185,-634.15892815,0.00015649,2]
[401193209,1768035041195,-500.0,0.00015649,2]
[401193210,1768035041207,-216.9098405,0.00015649,2]
[401193211,1768035041217,-150.0,0.00015675,2]
[401193212,1768035041228,-150.0,0.00015675,2]
[401193213,1768035041238,-150.0,0.00015675,2]
[401193214,1768035041248,-150.0,0.00015675,2]
[401193215,1768035041258,-150.0,0.00015675,2]
[401193216,1768035041268,-150.0,0.00015675,2]
[401193217,1768035041279,-233.86226435,0.00015675,2]
[401193218,1768035041288,-150.0,0.00015675,2]
[401193219,1768035041298,-150.0,0.00015675,2]
[401193220,1768035041308,-150.0,0.00015675,2]
[401193221,1768035041318,-150.0,0.00015675,2]
[401193222,1768035041330,-150.0,0.00015675,2]
[401193223,1768035041340,-150.0,0.00015675,2]
[401193224,1768035041350,-150.7951792,0.00015675,2]
[401193225,1768035041359,-150.0,0.00015675,2]
[401193226,1768035041374,-500.0,0.00015675,2]
[401193227,1768035041385,-150.0,0.00015675,2]
[401193228,1768035041395,-150.0,0.00015675,2]
[401193229,1768035041405,-150.0,0.00015675,2]
[401193230,1768035041416,-150.0,0.00015675,2]
[401193231,1768035041427,-199.74900552,0.00015675,2]
[401193232,1768035041439,-500.0,0.00015675,2]
[401193233,1768035041449,-500.0,0.00015675,2]
[401193234,1768035041459,-153.19668317,0.00015675,2]
[401193235,1768035041469,-150.0,0.00015675,2]
[401193236,1768035041479,-150.0,0.00015675,2]
[401193237,1768035041489,-500.0,0.00015675,2]
[401193238,1768035041498,-500.0,0.00015675,2]
[401193239,1768035041507,-13172.81,0.00015686,2]
[401193240,1768035041517,-3103.92597286,0.00015712,2]
[401193241,1768035041526,-150.0,0.0001573,2]
[401193242,1768035041536,-150.0,0.0001573,2]
[401193243,1768035041545,-150.0,0.0001573,2]
[401193244,1768035041555,-150.0,0.0001573,2]
[401193245,1768035041565,-150.0,0.0001573,2]
[401193246,1768035041576,-150.0,0.0001573,2]
[401193247,1768035041586,-150.0,0.0001573,2]
[401193248,1768035041596,-150.0,0.0001573,2]
[401193249,1768035041606,-211.95680592,0.0001573,2]
[401193250,1768035041616,-500.0,0.0001573,2]
[401193251,1768035041625,-150.0,0.0001573,2]
[401193252,1768035041634,-222.12982038,0.0001573,2]
[401193253,1768035041644,-150.0,0.0001573,2]
[401193254,1768035041653,-500.0,0.0001573,2]
[401193255,1768035041663,-500.0,0.0001573,2]
[401193256,1768035041673,-150.0,0.0001573,2]
[401193257,1768035041683,-500.0,0.0001573,2]
[401193258,1768035041694,-500.0,0.0001573,2]
[401193259,1768035042104,-500.0,0.00015781,2]
[401193260,1768035042118,-150.0,0.00015785,2]
[401193261,1768035042130,-200.0,0.00015785,2]
[401193262,1768035042142,-200.0,0.00015785,2]
[401193263,1768035042153,-200.0,0.00015785,2]
[401193264,1768035042164,-150.0,0.00015785,2]
[401193265,1768035042175,-200.0,0.00015785,2]
[401193266,1768035042186,-500.0,0.00015785,2]
[401193267,1768035042195,-150.0,0.00015785,2]
[401193268,1768035042204,-150.0,0.00015785,2]
[401193269,1768035042215,-500.0,0.00015785,2]
[401193270,1768035042225,-150.0,0.00015785,2]
[401193271,1768035042235,-500.0,0.00015785,2]
[401193272,1768035042244,-500.0,0.00015785,2]
[401193273,1768035042254,-243.01206537,0.0001579,2]
[401193274,1768035042263,-243.01206537,0.0001579,2]
[401193275,1768035042274,-5223.79508018,0.00015833,2]
[401193276,1768035042283,-500.0,0.00015839,2]
[401193277,1768035042293,-200.0,0.00015839,2]
[401193278,1768035042302,-500.0,0.00015839,2]
[401193279,1768035042312,-150.0,0.00015839,2]
[401193280,1768035042322,-500.0,0.00015839,2]
[401193281,1768035042332,-500.0,0.00015839,2]
[401193282,1768035042342,-161.34563467,0.00015894,2]
[401193283,1768035042351,-500.0,0.00015894,2]
[401193284,1768035042361,-150.0,0.00015894,2]
[401193285,1768035042371,-500.0,0.00015894,2]
[401193286,1768035042381,-500.0,0.00015894,2]
[401193287,1768035042391,-500.0,0.00015949,2]
[401193288,1768035042400,-250.0,0.00015949,2]
[401193289,1768035042411,-500.0,0.00015949,2]
[401193290,1768035042420,-500.0,0.00015949,2]
[401193292,1768035042429,-151.48,0.00015959,2]
[401193293,1768035042439,-3103.92597286,0.00015985,2]
[401193294,1768035042449,-500.0,0.00016004,2]
[401193295,1768035042458,-206.0,0.00016004,2]
[401193296,1768035042468,-300.0,0.00016004,2]
[401193297,1768035042478,-170.80877724,0.0001602,2]
[401193298,1768035042487,-500.0,0.00016059,2]
[401193299,1768035042497,-5223.79508018,0.00016092,2]
[401193300,1768035042507,-500.0,0.00016113,2]
[401193301,1768035042517,-243.01206537,0.00016141,2]
[401193302,1768035042526,-243.01206537,0.00016141,2]
[401193303,1768035042535,-281.2750509,0.00016168,2]
[401193304,1768035042545,-263.75602621,0.000162,2]
[401193305,1768035042554,-189.54348929,0.000162,2]
[401193306,1768035042564,-150.0,0.000162,2]
[401193307,1768035042573,-255.68743637,0.000162,2]
[401193308,1768035042583,-150.0,0.000162,2]
[401193309,1768035042592,-150.0,0.000162,2]
[401193310,1768035042602,-150.0,0.000162,2]
[401193311,1768035042611,-229.31905987,0.000162,2]
[401193312,1768035042621,-150.0,0.000162,2]
[401193313,1768035042630,-216.87423394,0.000162,2]
[401193314,1768035042639,-150.0,0.000162,2]
[401193315,1768035042648,-150.0,0.000162,2]
[401193316,1768035042658,-150.0,0.000162,2]
[401193317,1768035042667,-150.0,0.000162,2]
[401193318,1768035042676,-150.0,0.000162,2]
[401193319,1768035042685,-150.0,0.000162,2]
[401193320,1768035042694,-178.71892515,0.000162,2]
[401193321,1768035042704,-263.75602621,0.00016218,2]
[401193322,1768035042714,-189.54348929,0.00016218,2]
[401193323,1768035042723,-255.68743637,0.00016218,2]
[401193324,1768035042732,-229.31905987,0.00016218,2]
[401193325,1768035042742,-216.87423394,0.00016218,2]
[401193326,1768035042751,-178.71892515,0.00016218,2]
[401193327,1768035042760,-150.0,0.0001623,2]
[401193328,1768035042769,-150.0,0.00016235,2]
[401193329,1768035042778,-263.75602621,0.00016236,2]
[401193330,1768035042787,-189.54348929,0.00016236,2]
[401193331,1768035042796,-255.68743637,0.00016236,2]
[401193332,1768035042805,-229.31905987,0.00016236,2]
[401193333,1768035042815,-216.87423394,0.00016236,2]
[401193334,1768035042824,-178.71892515,0.00016236,2]
[401193335,1768035042834,-150.0,0.00016241,2]
[401193336,1768035042844,-263.75602621,0.00016255,2]
[401193337,1768035042853,-189.54348929,0.00016255,2]
[401193338,1768035042863,-255.68743637,0.00016255,2]
[401193339,1768035042872,-229.31905987,0.00016255,2]
[401193340,1768035042882,-216.87423394,0.00016255,2]
[401193341,1768035042892,-178.71892515,0.00016255,2]
[401193342,1768035042902,-3103.92597286,0.00016259,2]
[401193343,1768035042912,-150.0,0.00016259,2]
[401193344,1768035042921,-150.0,0.00016267,2]
[401193345,1768035042931,-150.0,0.00016269,2]
[401193346,1768035042940,-263.75602621,0.00016273,2]
[401193347,1768035042950,-189.54348929,0.00016273,2]